bitfinex/quotes_ETHUSD_20250909
["timestamp","ask_amount","ask_price","bid_price","bid_amount"]
[1757388615094,0.8028,4300.9,4300.8,3.00000001]
[1757388615394,1.2599,4300.9,4300.8,3.00000001]
[1757388617089,1.2599,4300.9,4300.8,5.32514881]
[1757388617590,1.2599,4300.9,4300.8,3.00000001]
[1757388617992,1.2599,4300.9,4300.8,5.32514881]
[1757388618491,0.8028,4300.9,4300.8,5.32514881]
[1757388618991,0.3073,4300.9,4300.8,5.32514881]
[1757388619393,0.001,4300.9,4300.8,5.32514881]
[1757388622374,0.001,4300.9,4300.8,6.90674749]
[1757388622949,0.001,4300.9,4300.8,3.84639869]
[1757388623148,0.3073,4300.9,4300.8,5.32514881]
[1757388625314,1.2599,4300.9,4300.8,5.32514881]
[1757388625796,1.2599,4300.9,4300.8,3.00000001]
[1757388626417,1.2599,4300.9,4300.8,5.32514881]
[1757388626801,0.8028,4300.9,4300.8,5.32514881]
[1757388627723,0.001,4300.9,4300.8,5.62004881]
[1757388627888,0.001,4300.9,4300.8,3.00000001]
[1757388628088,0.8028,4300.9,4300.8,5.32514881]
[1757388628729,0.3073,4300.9,4300.8,5.32514881]
[1757388629423,0.001,4300.9,4300.8,5.32514881]
[1757388630327,0.001,4300.9,4300.8,3.00000001]
[1757388630534,0.3073,4300.9,4300.8,5.32514881]
[1757388630827,0.8028,4300.9,4300.8,5.32514881]
[1757388631447,0.001,4300.9,4300.8,5.32514881]
[1757388631585,0.001,4300.9,4300.8,5.63184881]
[1757388632198,0.001,4300.9,4300.8,6.67504952]
[1757388632398,0.001,4300.9,4300.8,7.88943421]
[1757388632615,0.001,4300.9,4300.8,7.55534952]
[1757388634317,0.001,4300.9,4300.8,11.45834952]
[1757388638319,0.001,4300.9,4300.8,11.01844952]
[1757388638920,0.001,4300.9,4300.8,7.11544952]
[1757388639141,0.001,4300.9,4300.8,11.01544952]
[1757388639336,0.001,4300.9,4300.8,7.11544952]
[1757388639653,0.001,4300.9,4300.8,10.57504952]
[1757388640041,0.001,4300.9,4300.8,6.67504952]
[1757388640242,0.001,4300.9,4300.8,10.26834952]
[1757388640441,1.2686,4300.9,4300.8,1e-08]
[1757388641009,3.59369474,4300.9,4300.8,1e-08]
[1757388641214,3.59369474,4300.9,4300.8,0.83055079]
[1757388642115,1.2686,4300.9,4300.8,0.83055079]
[1757388642321,3.59369474,4300.9,4300.8,0.83055079]
[1757388642717,4.18555831,4300.9,4300.8,1e-08]
[1757388643765,4.18555831,4300.9,4300.8,0.62244645]
[1757388643956,4.97755831,4300.9,4300.8,1e-08]
[1757388644260,8.87655831,4300.9,4300.8,1e-08]
[1757388644818,4.97755831,4300.9,4300.8,1e-08]
[1757388645233,8.87755831,4300.9,4300.8,1e-08]
[1757388645536,4.97755831,4300.9,4300.8,1e-08]
[1757388645737,8.87755831,4300.9,4300.8,1e-08]
[1757388650431,12.09455511,4300.9,4300.8,1e-08]
[1757388652158,18.21777583,4300.9,4300.8,1e-08]
[1757388654710,12.09455511,4300.9,4300.8,1e-08]
[1757388655666,18.21777583,4300.9,4300.8,1e-08]
[1757388656284,11.87755831,4300.9,4300.8,1e-08]
[1757388656485,6.71245831,4300.9,4300.8,1e-08]
[1757388656718,11.08555831,4300.9,4300.8,1e-08]
[1757388656904,11.87755831,4300.9,4300.8,1e-08]
[1757388657331,11.08555831,4300.9,4300.8,1e-08]
[1757388657628,11.87755831,4300.9,4300.8,1e-08]
[1757388658035,11.40445831,4300.9,4300.8,1e-08]
[1757388658526,4.97755831,4300.9,4300.8,1e-08]
[1757388658732,8.87755831,4300.9,4300.8,1e-08]
[1757388660718,8.87855831,4300.9,4300.8,1e-08]
[1757388662138,7.01909474,4300.9,4300.8,0.31480001]
[1757388662842,3.11809474,4300.9,4300.8,0.31480001]
[1757388663051,7.01909474,4300.9,4300.8,0.31480001]
[1757388663397,6.22709474,4300.9,4300.8,0.31480001]
[1757388663598,2.32609474,4300.9,4300.8,0.74690001]
[1757388663854,3.902,4300.9,4300.8,1.18680001]
[1757388664643,3.902,4300.9,4300.8,0.74690001]
[1757388667317,6.22709474,4300.9,4300.8,0.74690001]
[1757388667503,3.901,4300.9,4300.8,0.31480001]
[1757388667703,3.901,4300.9,4300.8,1.18680001]
[1757388668347,3.901,4300.9,4300.8,0.74690001]
[1757388668862,4.017,4300.9,4300.8,1.37525273]
[1757388669363,0.117,4300.9,4300.8,1.37525273]
[1757388669658,4.017,4300.9,4300.8,1.99769917]
[1757388671058,4.017,4300.9,4300.8,1.55779917]
[1757388671257,4.017,4300.9,4300.8,0.93724645]
[1757388672621,4.017,4300.9,4300.8,1.36934645]
[1757388673441,4.017,4300.9,4300.8,0.93724645]
[1757388675729,6.63029474,4300.9,4300.8,0.62244645]
[1757388675960,7.57859474,4300.9,4300.8,1e-08]
[1757388676976,7.10979474,4300.9,4300.8,1e-08]
[1757388677279,9.49247337,4300.9,4300.8,1e-08]
[1757388677882,15.61569409,4300.9,4300.8,1e-08]
[1757388678478,18.61569409,4300.9,4300.8,1e-08]
[1757388681274,12.49247337,4300.9,4300.8,1e-08]
[1757388682296,11.58447337,4300.9,4300.8,1e-08]
[1757388683000,12.37647337,4300.9,4300.8,1e-08]
[1757388683161,12.59358314,4300.9,4300.8,1e-08]
[1757388684457,5.54320451,4300.9,4300.8,1e-08]
[1757388684662,6.22609474,4300.9,4300.8,0.31480001]
[1757388685139,6.51429474,4300.9,4300.8,1e-08]
[1757388685485,7.46259474,4300.9,4300.8,1e-08]
[1757388685846,6.99379474,4300.9,4300.8,1e-08]
[1757388686045,6.22609474,4300.9,4300.8,1e-08]
[1757388687097,6.22609474,4300.9,4300.8,0.31480001]
[1757388687861,6.22609474,4300.9,4300.8,1e-08]
[1757388688968,6.51429474,4300.9,4300.8,1e-08]
[1757388689300,7.46259474,4300.9,4300.8,1e-08]
[1757388691192,9.41175337,4300.9,4300.8,1e-08]
[1757388697420,9.62903188,4300.9,4300.8,1e-08]
[1757388710932,12.62903188,4300.9,4300.8,1e-08]
[1757388714791,19.74903188,4300.9,4300.8,1e-08]
[1757388716890,12.62903188,4300.9,4300.8,1e-08]
[1757388717994,12.62942558,4300.9,4300.8,1e-08]
[1757388721680,13.99082558,4300.9,4300.8,1e-08]
[1757388723557,13.77315337,4300.9,4300.8,1e-08]
[1757388723751,13.99088047,4300.9,4300.8,1e-08]
[1757388724470,13.77315337,4300.9,4300.8,1e-08]
[1757388724790,13.99085518,4300.9,4300.8,1e-08]
[1757388725352,13.99085518,4300.9,4300.0,32.56855119]
[1757388725353,3.11752731,4300.1,4300.0,32.56855119]
[1757388725575,20.56967184,4300.1,4300.0,32.56855119]
[1757388725787,13.10658185,4300.1,4300.0,32.56855119]
[1757388725988,12.33098185,4300.1,4300.0,32.56855119]
[1757388730090,12.33098185,4300.1,4300.0,32.85695119]
[1757388732271,12.61608185,4300.1,4300.0,28.14635915]
[1757388732467,13.54178185,4300.1,4300.0,12.15513048]
[1757388733280,13.10658185,4300.1,4300.0,12.15513048]
[1757388733607,13.54178185,4300.1,4300.0,12.15513048]
[1757388734709,13.5405493,4300.1,4300.0,12.15513048]
[1757388735214,13.1053493,4300.1,4300.0,12.15513048]
[1757388736683,13.5405493,4300.1,4300.0,12.15513048]
[1757388737781,13.5405493,4300.1,4300.0,12.15713048]
[1757388740917,13.1053493,4300.1,4300.0,12.15713048]
[1757388741631,13.10511389,4300.1,4300.0,12.15713048]
[1757388743004,13.54031389,4300.1,4300.0,12.15713048]
[1757388743884,13.10511389,4300.1,4300.0,12.15713048]
[1757388744319,13.54031389,4300.1,4300.0,12.15713048]
[1757388745088,13.10511389,4300.1,4300.0,12.15713048]
[1757388745301,12.32951389,4300.1,4300.0,12.15713048]
[1757388748611,12.11204749,4300.1,4300.0,12.15713048]
[1757388748941,12.32971371,4300.1,4300.0,12.15713048]
[1757388752622,12.11204749,4300.1,4300.0,12.15713048]
[1757388752825,12.3298923,4300.1,4300.0,12.15713048]
[1757388753256,12.6461923,4300.1,4300.0,12.15713048]
[1757388753623,13.1111923,4300.1,4300.0,12.15713048]
[1757388754440,13.5639923,4300.1,4300.0,12.15713048]
[1757388754836,3.11779774,4299.6,4299.5,0.002]
[1757388755163,10.77699463,4299.6,4299.5,0.002]
[1757388755349,11.09329463,4299.6,4299.5,0.002]
[1757388755943,11.55829463,4299.6,4299.5,0.002]
[1757388757727,10.77699463,4299.6,4299.5,0.002]
[1757388759129,11.55829463,4299.6,4299.5,0.002]
[1757388759373,17.89699463,4299.6,4299.5,0.002]
[1757388760673,17.89699463,4299.6,4299.5,0.7683]
[1757388760861,17.35264255,4299.6,4299.5,0.7683]
[1757388761230,17.35264255,4299.6,4299.5,0.2987]
[1757388762268,13.45564255,4299.6,4299.5,0.2987]
[1757388762442,17.35264255,4299.6,4299.5,0.2987]
[1757388763265,13.45564255,4299.6,4299.5,0.2987]
[1757388763587,17.35264255,4299.6,4299.5,0.2987]
[1757388764382,19.62055052,4299.6,4299.5,0.2987]
[1757388764742,19.6204389,4299.6,4299.5,0.2987]
[1757388772781,21.4064389,4299.6,4299.5,0.2987]
[1757388772980,21.4064389,4299.6,4299.5,0.002]
[1757388775022,21.4054389,4299.6,4299.5,0.002]
[1757388776521,21.7217389,4299.6,4299.5,0.002]
[1757388776822,22.1867389,4299.6,4299.5,0.002]
[1757388777037,22.6395389,4299.6,4299.5,0.002]
[1757388782546,17.8257389,4299.6,4299.5,0.002]
[1757388782750,21.4044389,4299.6,4299.5,0.002]
[1757388787079,17.5094389,4299.6,4299.5,0.3002]
[1757388787278,21.4044389,4299.6,4299.5,0.3002]
[1757388787445,21.40469385,4299.6,4299.5,0.3002]
[1757388788599,21.40469385,4299.6,4299.5,0.002]
[1757388790041,28.29847757,4299.6,4299.5,0.002]
[1757388790270,28.77107757,4299.6,4299.5,0.002]
[1757388791393,28.77107757,4299.6,4299.0,0.002]
[1757388791394,3.11806824,4299.1,4299.0,1e-08]
[1757388791594,3.1183388,4298.6,4298.1,0.02]
[1757388791804,3.1185553,4298.2,4298.1,0.02]
[1757388792129,7.23154344,4298.2,4298.1,0.02]
[1757388792270,14.14102716,4298.2,4298.1,0.02]
[1757388792630,14.59792716,4298.2,4298.1,0.02]
[1757388793131,14.12532716,4298.2,4298.1,0.02]
[1757388794073,14.59792716,4298.2,4298.1,0.02]
[1757388794506,14.59750788,4298.2,4298.1,0.02]
[1757388794822,14.76906948,4298.2,4298.1,0.02]
[1757388795008,18.92622811,4298.2,4298.1,0.02]
[1757388801254,18.92587885,4298.2,4298.1,0.02]
[1757388801590,18.92587885,4298.2,4298.1,1e-08]
[1757388801791,20.32087885,4298.2,4298.1,1e-08]
[1757388802953,13.79647885,4298.2,4298.1,1e-08]
[1757388803153,17.69047885,4298.2,4298.1,0.29820001]
[1757388803356,17.69047885,4298.2,4298.1,1e-08]
[1757388804020,18.92487885,4298.2,4298.1,1e-08]
[1757388804421,18.45227885,4298.2,4298.1,1e-08]
[1757388804615,18.92487885,4298.2,4298.1,1e-08]
[1757388809763,26.04487885,4298.2,4298.1,1e-08]
[1757388811563,26.04476909,4298.2,4298.1,1e-08]
[1757388811756,26.04476909,4298.2,4298.1,0.00200001]
[1757388811953,25.57216909,4298.2,4298.1,0.00200001]
[1757388812158,26.04576909,4298.2,4298.1,0.00200001]
[1757388813298,25.57216909,4298.2,4298.1,0.00200001]
[1757388815008,26.04576909,4298.2,4298.1,0.00200001]
[1757388817502,25.57216909,4298.2,4298.1,0.00200001]
[1757388818230,25.11526909,4298.2,4298.1,0.00200001]
[1757388819391,24.81036909,4298.2,4298.1,0.00200001]
[1757388822325,18.67838537,4298.2,4298.1,0.00200001]
[1757388822830,18.67738537,4298.2,4298.1,0.30550001]
[1757388823800,18.89529322,4298.2,4298.1,0.30550001]
[1757388824342,17.73813459,4298.2,4298.1,1.19060001]
[1757388825397,17.73813459,4298.2,4298.1,0.75070001]
[1757388825910,17.73813459,4298.2,4298.1,0.30550001]
[1757388827095,17.73813383,4298.2,4298.1,0.30550001]
[1757388829405,13.84513383,4298.2,4298.1,0.30550001]
[1757388829606,17.73813383,4298.2,4298.1,0.30550001]
[1757388830946,19.96874519,4298.2,4298.1,0.00200001]
[1757388831150,20.44234519,4298.2,4298.1,0.00200001]
[1757388831445,19.96874519,4298.2,4298.1,0.00200001]
[1757388831635,19.49744519,4298.2,4298.1,0.00200001]
[1757388832007,19.20804519,4298.2,4298.1,0.00200001]
[1757388832631,19.20804519,4298.2,4298.1,0.30550001]
[1757388833370,19.20804519,4298.2,4298.1,0.00200001]
[1757388834841,19.20804519,4298.2,4298.1,0.30550001]
[1757388835245,19.20804519,4298.2,4298.1,0.00200001]
[1757388836144,19.96974519,4298.2,4298.1,0.00200001]
[1757388836479,20.44334519,4298.2,4298.1,0.00200001]
[1757388841860,3.11871769,4297.9,4297.8,1e-08]
[1757388842043,19.31410629,4297.9,4297.8,1e-08]
[1757388842243,20.56080629,4297.9,4297.8,1e-08]
[1757388842477,27.68080629,4297.9,4297.8,1e-08]
[1757388842682,28.96259364,4297.9,4297.8,1e-08]
[1757388851751,28.96259364,4297.9,4297.8,0.00200001]
[1757388851913,6.11882597,4297.7,4297.6,1e-08]
[1757388852114,3.11920502,4297.0,4296.9,0.42150001]
[1757388852438,7.22811211,4297.0,4296.9,0.42350001]
[1757388852643,7.22811211,4297.0,4296.9,0.73170001]
[1757388852845,7.4456436,4297.0,4296.9,0.002]
[1757388853148,7.74539858,4297.0,4296.9,0.3102]
[1757388857542,7.74539858,4297.0,4296.9,0.002]
[1757388860055,7.74539858,4297.0,4296.9,0.3102]
[1757388860260,7.74530981,4297.0,4296.9,0.3102]
[1757388860761,7.44555483,4297.0,4296.9,0.3102]
[1757388860962,3.33711211,4297.0,4296.9,0.3102]
[1757388861116,7.22811211,4297.0,4296.9,1.1996]
[1757388862467,7.22811211,4297.0,4296.9,0.7597]
[1757388862648,7.22768438,4297.0,4296.9,0.7597]
[1757388863672,7.22768438,4297.0,4296.9,0.3102]
[1757388864373,7.44523156,4297.0,4296.9,0.3102]
[1757388867473,7.44523156,4297.0,4296.9,0.002]
[1757388867681,7.44523156,4297.0,4296.9,0.3102]
[1757388868667,3.55423156,4297.0,4296.9,0.3102]
[1757388868965,7.44423156,4297.0,4296.9,0.7597]
[1757388869528,7.44523156,4297.0,4296.9,0.7597]
[1757388870373,7.44523156,4297.0,4296.9,0.3102]
[1757388870574,7.4455498,4297.0,4296.9,0.3102]
[1757388872793,9.2325498,4297.0,4296.9,0.3102]
[1757388872929,9.2325498,4297.0,4296.9,0.002]
[1757388873484,10.4891498,4297.0,4296.9,0.002]
[1757388874436,11.95806116,4297.0,4296.9,0.002]
[1757388874639,11.95820889,4297.0,4296.9,0.002]
[1757388877865,14.95820889,4297.0,4296.9,0.002]
[1757388878049,15.4605353,4297.0,4296.9,0.002]
[1757388881444,14.9910353,4297.0,4296.9,0.002]
[1757388881844,14.4955353,4297.0,4296.9,0.002]
[1757388882046,14.2039353,4297.0,4296.9,0.315]
[1757388882245,13.70060889,4297.0,4296.9,0.315]
[1757388882573,12.23169753,4297.0,4296.9,0.7743]
[1757388882969,12.23169753,4297.0,4296.9,0.315]
[1757388884587,12.73418174,4297.0,4296.9,0.315]
[1757388885246,8.84518174,4297.0,4296.9,0.315]
[1757388885553,12.73418174,4297.0,4296.9,0.315]
[1757388885753,12.73418174,4297.0,4296.9,0.002]
[1757388890619,12.51677574,4297.0,4296.9,0.002]
[1757388890790,12.73486225,4297.0,4296.9,0.002]
[1757388891696,14.84640815,4297.0,4296.9,0.002]
[1757388893585,14.84639932,4297.0,4296.9,0.002]
[1757388895688,15.63349932,4297.0,4296.9,0.002]
[1757388895902,16.10299932,4297.0,4296.9,0.002]
[1757388898800,15.63349932,4297.0,4296.9,0.002]
[1757388899313,16.10299932,4297.0,4296.9,0.002]
[1757388902042,6.11942168,4296.6,4296.5,0.002]
[1757388902268,16.58131748,4296.6,4296.5,0.002]
[1757388902565,17.78971748,4296.6,4296.5,0.002]
[1757388902774,17.78971748,4296.6,4296.3,0.002]
[1757388902775,3.11953002,4296.4,4296.3,0.002]
[1757388902903,11.72449039,4296.4,4296.3,0.002]
[1757388903109,13.43534503,4296.4,4296.3,0.002]
[1757388905565,8.33994503,4296.4,4296.3,0.3172]
[1757388905711,11.72449039,4296.4,4296.3,0.7839]
[1757388906131,11.72449039,4296.4,4296.3,0.3172]
[1757388907706,7.83749039,4296.4,4296.3,0.002]
[1757388907948,12.5327767,4296.4,4296.3,0.002]
[1757388908155,12.9993767,4296.4,4296.3,0.002]
[1757388908314,12.93289039,4296.4,4296.3,0.002]
[1757388908914,13.43449897,4296.4,4296.3,0.002]
[1757388909130,9.54749897,4296.4,4296.3,0.002]
[1757388909331,12.93289039,4296.4,4296.3,0.002]
[1757388913310,7.83749039,4296.4,4296.3,0.002]
[1757388913511,11.72449039,4296.4,4296.3,0.3172]
[1757388915564,12.03109039,4296.4,4296.3,0.002]
[1757388915763,12.93289039,4296.4,4296.3,0.002]
[1757388916310,12.49769039,4296.4,4296.3,0.002]
[1757388916511,11.72449039,4296.4,4296.3,0.002]
[1757388918052,12.03109039,4296.4,4296.3,0.002]
[1757388918219,12.93289039,4296.4,4296.3,0.002]
[1757388919765,12.93242892,4296.4,4296.3,0.002]
[1757388922228,12.49722892,4296.4,4296.3,0.002]
[1757388922427,11.72402892,4296.4,4296.3,0.002]
[1757388922857,11.72502892,4296.4,4296.3,0.002]
[1757388923060,11.72502892,4296.4,4296.3,0.3172]
[1757388923061,11.72402892,4296.4,4296.3,0.3172]
[1757388926381,12.22584784,4296.4,4296.3,0.002]
[1757388929715,12.22575786,4296.4,4296.3,0.002]
[1757388931585,12.51455786,4296.4,4296.3,0.002]
[1757388931797,13.48135786,4296.4,4296.3,0.002]
[1757388932388,9.59535786,4296.4,4296.3,0.002]
[1757388932615,13.48135786,4296.4,4296.3,0.002]
[1757388933169,13.01265786,4296.4,4296.3,0.002]
[1757388933466,13.48135786,4296.4,4296.3,0.002]
[1757388933661,13.48154046,4296.4,4296.3,0.002]
[1757388934091,13.48154046,4296.4,4296.0,0.002]
[1757388934092,3.11969255,4296.1,4296.0,1e-08]
[1757388934281,12.22749672,4296.1,4296.0,1e-08]
[1757388934485,20.12363842,4296.1,4296.0,1e-08]
[1757388934922,20.2168024,4296.1,4296.0,1e-08]
[1757388937385,27.3368024,4296.1,4296.0,1e-08]
[1757388937586,28.96207583,4296.1,4296.0,1e-08]
[1757388938024,30.35907583,4296.1,4296.0,1e-08]
[1757388942280,24.22035305,4296.1,4296.0,1e-08]
[1757388942925,29.80635305,4296.1,4296.0,1e-08]
[1757388951051,29.33765305,4296.1,4296.0,1e-08]
[1757388951201,29.80635305,4296.1,4296.0,1e-08]
[1757388952457,30.4347508,4296.1,4296.0,1e-08]
[1757388953953,30.43397853,4296.1,4296.0,1e-08]
[1757388956766,30.43497853,4296.1,4296.0,1e-08]
[1757388958843,29.96627853,4296.1,4296.0,1e-08]
[1757388960271,29.33880942,4296.1,4296.0,1e-08]
[1757388960473,24.66690942,4296.1,4296.0,1e-08]
[1757388960673,28.55090942,4296.1,4296.0,0.29880001]
[1757388961582,28.55090942,4296.1,4296.0,1e-08]
[1757388961879,29.34550942,4296.1,4296.0,1e-08]
[1757388962031,29.80610942,4296.1,4296.0,1e-08]
[1757388963839,29.34550942,4296.1,4296.0,1e-08]
[1757388964049,28.85650942,4296.1,4296.0,1e-08]
[1757388964256,28.55090942,4296.1,4296.0,1e-08]
[1757388965861,28.85650942,4296.1,4296.0,1e-08]
[1757388966945,29.80610942,4296.1,4296.0,1e-08]
[1757388968884,29.37030525,4296.1,4296.0,1e-08]
[1757388969190,29.58834354,4296.1,4296.0,1e-08]
[1757388969541,29.12774354,4296.1,4296.0,1e-08]
[1757388969746,29.12774309,4296.1,4296.0,1e-08]
[1757388969942,28.11510525,4296.1,4296.0,1e-08]
[1757388970196,28.33314309,4296.1,4296.0,1e-08]
[1757388970588,28.11510525,4296.1,4296.0,1e-08]
[1757388970792,28.42070525,4296.1,4296.0,1e-08]
[1757388970966,29.37030525,4296.1,4296.0,1e-08]
[1757388972207,29.80638063,4296.1,4296.0,1e-08]
[1757388975360,29.80643815,4296.1,4296.0,1e-08]
[1757388976461,30.43390726,4296.1,4296.0,1e-08]
[1757388976866,29.97330726,4296.1,4296.0,1e-08]
[1757388977065,30.43390726,4296.1,4296.0,1e-08]
[1757388981495,27.15223815,4296.1,4296.0,0.30490001]
[1757388981715,25.52696472,4296.1,4296.0,0.75560001]
[1757388982602,25.52696472,4296.1,4296.0,1.19550001]
[1757388982990,25.52696472,4296.1,4296.0,0.75560001]
[1757388983424,25.52693726,4296.1,4296.0,0.75560001]
[1757388983790,25.52693726,4296.1,4296.0,1e-08]
[1757388984023,27.79484523,4296.1,4296.0,0.30490001]
[1757388988104,28.58944523,4296.1,4296.0,1e-08]
[1757388988300,36.52972316,4296.1,4296.0,1e-08]
[1757388988844,36.52972316,4296.1,4295.8,1e-08]
[1757388988845,5.189,4295.9,4295.8,1e-08]
[1757388989145,12.33588165,4295.9,4295.8,1e-08]
[1757388989454,13.59108165,4295.9,4295.8,1e-08]
[1757388990810,20.71108165,4295.9,4295.8,1e-08]
[1757388991438,20.7110928,4295.9,4295.8,1e-08]
[1757388991641,22.8226387,4295.9,4295.8,1e-08]
[1757388991947,22.99964923,4295.9,4295.8,1e-08]
[1757388993565,6.11996349,4295.6,4295.5,1e-08]
[1757388993696,4.51718029,4295.2,4295.1,1e-08]
[1757388994042,21.40147481,4295.2,4295.1,1e-08]
[1757388994245,22.8120501,4295.2,4295.1,1e-08]
[1757388999666,29.9320501,4295.2,4295.1,1e-08]
[1757388999867,31.21547621,4295.2,4295.1,1e-08]
[1757389002247,16.45669828,4295.2,4295.1,0.30730001]
[1757389002472,18.55229688,4295.2,4295.1,0.77510001]
[1757389002783,19.34429688,4295.2,4295.1,0.77510001]
[1757389002991,18.55229688,4295.2,4295.1,0.77510001]
[1757389003498,19.34429688,4295.2,4295.1,0.77510001]
[1757389005028,19.34429688,4295.2,4295.1,0.30730001]
[1757389005150,21.61220485,4295.2,4295.1,0.30730001]
[1757389005354,27.19920485,4295.2,4295.1,0.30730001]
[1757389005705,24.93129688,4295.2,4295.1,0.30730001]
[1757389006420,24.93029688,4295.2,4295.1,1.21500001]
[1757389007500,21.93029688,4295.2,4295.1,1.21500001]
[1757389007660,18.05029688,4295.2,4295.1,1.21500001]
[1757389007860,21.71221928,4295.2,4295.1,1.21500001]
[1757389008513,17.83221928,4295.2,4295.1,1.21500001]
[1757389008719,21.71221928,4295.2,4295.1,1.21500001]
[1757389009010,21.71221928,4295.2,4295.1,0.77510001]
[1757389011874,21.71221928,4295.2,4295.1,0.30730001]
[1757389012263,21.71221928,4295.2,4295.1,1e-08]
[1757389012807,21.71221928,4295.2,4295.1,0.30730001]
[1757389017002,21.71221928,4295.2,4295.1,1e-08]
[1757389017500,21.92998679,4295.2,4295.1,1e-08]
[1757389019490,22.69908679,4295.2,4295.1,1e-08]
[1757389019690,21.92998679,4295.2,4295.1,0.30730001]
[1757389022901,21.92998679,4295.2,4295.1,1e-08]
[1757389022902,24.97209476,4295.2,4295.1,1e-08]
[1757389023100,28.43779476,4295.2,4295.1,1e-08]
[1757389023413,23.31789476,4295.2,4295.1,0.31460001]
[1757389023614,27.19689476,4295.2,4295.1,0.31460001]
[1757389023964,24.92898679,4295.2,4295.1,0.31460001]
[1757389024239,24.92898679,4295.2,4295.1,0.74750001]
[1757389024523,21.92898679,4295.2,4295.1,0.74750001]
[1757389024724,16.34198679,4295.2,4295.1,0.74750001]
[1757389025321,16.34298679,4295.2,4295.1,0.74750001]
[1757389026228,2.00603899,4295.2,4295.1,1.30864001]
[1757389026378,3.88,4295.2,4295.1,3.6368745]
[1757389026581,3.88,4295.2,4295.1,4.35873616]
[1757389027021,3.88,4295.2,4295.1,4.45145382]
[1757389028474,3.88,4295.2,4295.1,2.12321933]
[1757389028606,3.88,4295.2,4295.1,1.56731933]
[1757389028925,3.88,4295.2,4295.1,0.43584001]
[1757389028926,3.996,4295.2,4295.1,0.43584001]
[1757389029127,6.32418029,4295.2,4295.1,0.31460001]
[1757389033381,6.32418029,4295.2,4295.1,0.74750001]
[1757389033584,6.32418029,4295.2,4295.1,0.31460001]
[1757389034680,3.996,4295.2,4295.1,0.31460001]
[1757389034983,3.996,4295.2,4295.1,0.74750001]
[1757389036053,0.001,4295.2,4295.1,0.74750001]
[1757389036273,3.997,4295.2,4295.1,0.74750001]
[1757389041347,0.001,4295.2,4295.1,0.74750001]
[1757389041542,3.879,4295.2,4295.1,1.05758958]
[1757389041803,3.879,4295.2,4295.1,0.74750001]
[1757389045346,0.001,4295.2,4295.1,0.74750001]
[1757389045548,0.001,4295.7,4295.2,5.32818029]
[1757389045741,0.001,4295.7,4295.6,2.32796349]
[1757389045943,0.001,4295.7,4295.6,7.77683805]
[1757389046301,0.001,4295.7,4295.6,6.96760544]
[1757389047389,0.001,4295.7,4295.6,8.20764237]
[1757389047591,0.001,4295.7,4295.6,6.96760544]
[1757389047763,0.001,4295.9,4295.6,10.97228011]
[1757389047975,0.001,4296.1,4295.8,2.32785511]
[1757389048185,0.001,4296.1,4296.0,5.32774674]
[1757389048389,0.001,4296.1,4296.0,2.64234674]
[1757389048787,0.001,4296.1,4296.0,3.07524674]
[1757389049115,0.001,4296.1,4296.0,4.17254405]
[1757389051002,0.001,4296.1,4296.0,4.19582151]
[1757389052668,0.001,4296.1,4296.0,8.08182151]
[1757389052923,0.001,4296.1,4296.0,8.05854405]
[1757389054997,0.001,4296.4,4296.3,2.3275842]
[1757389055334,0.001,4296.4,4296.3,3.06113792]
[1757389055488,0.001,4296.4,4296.3,3.46463792]
[1757389055687,0.001,4296.4,4296.3,3.93523792]
[1757389056470,0.001,4296.4,4296.3,8.64318944]
[1757389057377,0.001,4296.4,4296.3,7.81923792]
[1757389065637,0.001,4296.4,4296.3,7.34863792]
[1757389069232,0.001,4296.4,4296.3,8.17258944]
[1757389069530,0.5,4296.4,4296.3,8.17258944]
[1757389069685,0.5,4296.4,4296.3,7.34863792]
[1757389070607,0.001,4296.4,4296.3,7.34863792]
[1757389072289,0.001,4296.4,4296.3,8.58847696]
[1757389072597,0.001,4296.4,4296.3,7.34863792]
[1757389073210,0.001,4296.4,4296.3,8.58847696]
[1757389074334,0.001,4296.4,4296.3,7.34863792]
[1757389076642,0.001,4296.4,4296.3,9.0084563]
[1757389076808,0.001,4296.4,4296.3,7.34863792]
[1757389078229,0.001,4296.4,4296.3,9.0084563]
[1757389082436,0.001,4296.4,4296.3,7.34863792]
[1757389087374,0.001,4296.4,4296.3,10.34863792]
[1757389089589,0.001,4296.6,4296.5,2.32747585]
[1757389089891,0.001,4297.0,4296.9,2.32725918]
[1757389090086,0.001,4297.0,4296.9,9.52873177]
[1757389090251,0.001,4297.0,4296.9,9.62145918]
[1757389090446,0.001,4297.0,4296.9,11.28200882]
[1757389090944,0.001,4297.0,4296.9,10.08765918]
[1757389091148,0.001,4297.0,4296.9,13.0786752]
[1757389091353,0.7696,4297.0,4296.9,12.7764752]
[1757389092151,0.7696,4297.0,4296.9,11.1154914]
[1757389101284,1.202,4297.0,4296.9,11.1154914]
[1757389104497,0.7696,4297.0,4296.9,11.1154914]
[1757389104711,0.4662,4297.0,4296.9,11.1154914]
[1757389105783,0.001,4297.0,4296.9,11.4176914]
[1757389106292,0.001,4297.0,4296.9,11.8586914]
[1757389106524,0.001,4297.0,4296.9,11.4176914]
[1757389106744,0.001,4297.0,4296.9,11.8586914]
[1757389107036,0.001,4297.0,4296.9,11.7426914]
[1757389107265,0.001,4297.0,4296.9,11.8586914]
[1757389110439,0.001,4297.0,4296.9,11.4176914]
[1757389114740,0.001,4297.0,4296.9,7.2394914]
[1757389114955,1.2561,4297.0,4296.9,12.77602071]
[1757389115101,1.2561,4297.0,4296.9,11.1144914]
[1757389115301,1.2561,4297.0,4296.9,12.77613217]
[1757389115521,0.7908,4297.0,4296.9,12.77613217]
[1757389115702,1.2561,4297.0,4296.9,8.90113739]
[1757389116052,1.2561,4297.0,4296.9,12.77613739]
[1757389117821,1.2561,4297.0,4296.9,12.77681631]
[1757389118142,1.2561,4297.0,4296.9,11.1144914]
[1757389121445,0.7908,4297.0,4296.9,11.1144914]
[1757389122522,0.4972,4297.0,4296.9,11.1144914]
[1757389122723,0.001,4297.0,4296.9,11.4093914]
[1757389125376,0.4972,4297.0,4296.9,11.1144914]
[1757389126842,0.4972,4297.0,4296.9,11.4093914]
[1757389127013,0.001,4297.0,4296.9,11.4093914]